fUST/lending_fUST_20260118
["ID","MTS","AMOUNT","RATE_DAILY","PERIOD"]
[402508205,1768690268244,-551.81,0.0001726,3]
[402508206,1768690268254,-500.0,0.0001726,3]
[402508207,1768690268264,-500.0,0.0001726,3]
[402508208,1768690268274,-500.0,0.0001726,3]
[402508209,1768690268284,-500.0,0.0001726,3]
[402508210,1768690268294,-500.0,0.0001726,3]
[402508211,1768690268304,-594.23,0.0001726,3]
[402508212,1768690268314,-560.83,0.0001726,3]
[402508213,1768690268327,-500.0,0.0001726,3]
[402508214,1768690268337,-500.0,0.0001726,3]
[402508215,1768690268348,-620.36,0.0001726,3]
[402508216,1768690268359,-500.0,0.0001726,3]
[402508218,1768690268369,-500.0,0.0001726,3]
[402508219,1768690268379,-500.0,0.0001726,3]
[402508221,1768690268389,-1112.65,0.0001726,3]
[402508223,1768690268400,-748.74,0.0001726,3]
[402508225,1768690268409,-500.0,0.0001726,3]
[402508227,1768690268420,-703.25,0.0001726,3]
[402508229,1768690268430,-500.0,0.0001726,3]
[402508231,1768690268439,-500.0,0.0001726,3]
[402508233,1768690268449,-500.0,0.0001726,3]
[402508235,1768690268459,-1337.44,0.0001726,3]
[402508237,1768690268471,-531.66,0.0001726,3]
[402508239,1768690268481,-500.0,0.0001726,3]
[402508241,1768690268491,-500.0,0.0001726,3]
[402508243,1768690268501,-709.13,0.0001726,3]
[402508245,1768690268511,-720.49,0.0001726,3]
[402508247,1768690268522,-1204.98,0.0001726,3]
[402508249,1768690268532,-564.62,0.0001726,3]
[402508251,1768690268542,-1200.0,0.0001726,2]
[402508253,1768690268552,-500.0,0.0001726,3]
[402508255,1768690268562,-500.0,0.0001726,3]
[402508258,1768690268573,-568.78,0.0001726,3]
[402508260,1768690268583,-500.0,0.0001726,3]
[402508261,1768690268593,-500.0,0.0001726,3]
[402508264,1768690268603,-760.21,0.0001726,3]
[402508266,1768690268613,-500.0,0.0001726,3]
[402508268,1768690268623,-500.0,0.0001726,3]
[402508270,1768690268634,-500.0,0.0001726,3]
[402508271,1768690268644,-500.0,0.0001726,3]
[402508274,1768690268654,-500.0,0.0001726,3]
[402508276,1768690268663,-500.0,0.0001726,3]
[402508277,1768690268673,-500.0,0.0001726,3]
[402508279,1768690268684,-500.0,0.0001726,3]
[402508281,1768690268694,-807.96,0.0001726,3]
[402508283,1768690268704,-1077.86,0.0001726,3]
[402508285,1768690268714,-643.96,0.0001726,3]
[402508287,1768690268724,-500.0,0.0001726,3]
[402508289,1768690268737,-500.0,0.0001726,3]
[402508291,1768690268746,-738.11,0.0001726,3]
[402508293,1768690268756,-500.0,0.0001726,3]
[402508295,1768690268766,-500.0,0.0001726,3]
[402508297,1768690268777,-649.78,0.0001726,3]
[402508299,1768690268787,-500.0,0.0001726,3]
[402508301,1768690268798,-701.58,0.0001726,3]
[402508303,1768690268809,-764.69,0.0001726,3]
[402508305,1768690268819,-500.0,0.0001726,3]
[402508308,1768690268830,-500.0,0.0001726,3]
[402508332,1768690269064,-500.0,0.0001726,3]
[402508334,1768690269074,-1268.1,0.0001726,3]
[402508336,1768690269084,-1195.56,0.0001726,3]
[402508338,1768690269093,-1026.17,0.0001726,3]
[402508340,1768690269103,-500.0,0.0001726,3]
[402508342,1768690269114,-500.0,0.0001726,3]
[402508344,1768690269124,-500.0,0.0001726,3]
[402508346,1768690269134,-717.34,0.0001726,3]
[402508348,1768690269144,-500.0,0.0001726,3]
[402508350,1768690269153,-500.0,0.0001726,3]
[402508352,1768690269163,-500.0,0.0001726,3]
[402508354,1768690269172,-500.0,0.0001726,3]
[402508355,1768690269182,-500.0,0.0001726,3]
[402508357,1768690269192,-500.0,0.0001726,3]
[402508359,1768690269202,-500.0,0.0001726,3]
[402508361,1768690269211,-500.0,0.0001726,3]
[402508363,1768690269221,-811.2,0.0001726,3]
[402508365,1768690269231,-500.0,0.0001726,3]
[402508367,1768690269240,-539.58941643,0.0001726,3]
[402508369,1768690269250,-500.0,0.0001726,3]
[402508371,1768690269259,-532.59,0.0001726,3]
[402508373,1768690269268,-500.0,0.0001726,3]
[402508375,1768690269277,-591.59,0.0001726,3]
[402508377,1768690269287,-500.0,0.0001726,3]
[402508379,1768690269296,-500.0,0.0001726,3]
[402508381,1768690269305,-718.09,0.0001726,3]
[402508383,1768690269316,-1212.85,0.0001726,3]
[402508385,1768690269329,-651.61,0.0001726,3]
[402508387,1768690269338,-500.0,0.0001726,3]
[402508389,1768690269347,-1907.03,0.0001726,3]
[402508391,1768690269356,-717.14,0.0001726,3]
[402508393,1768690269365,-517.83,0.0001726,3]
[402508395,1768690269375,-673.69,0.0001726,3]
[402508397,1768690269384,-500.0,0.0001726,3]
[402508399,1768690269393,-653.71,0.0001726,3]
[402508400,1768690269403,-502.5,0.0001726,3]
[402508402,1768690269413,-692.54,0.0001726,3]
[402508404,1768690269422,-500.0,0.0001726,3]
[402508406,1768690269431,-500.0,0.0001726,3]
[402508408,1768690269441,-597.8010965,0.0001726,3]
[402508410,1768690269449,-1247.67,0.0001726,3]
[402508412,1768690269459,-500.0,0.0001726,3]
[402508414,1768690269468,-1000.0,0.0001726,2]
[402508416,1768690269478,-500.0,0.0001726,3]
[402508418,1768690269487,-500.0,0.0001726,3]
[402508420,1768690269496,-500.0,0.0001726,3]
[402508422,1768690269505,-1000.01,0.0001726,3]
[402508424,1768690269515,-500.0,0.0001726,3]
[402508426,1768690269524,-500.0,0.0001726,3]
[402508428,1768690269532,-500.0,0.0001726,3]
[402508430,1768690269542,-500.0,0.0001726,3]
[402508432,1768690269551,-708.28,0.0001726,3]
[402508434,1768690269561,-500.0,0.0001726,3]
[402508436,1768690269570,-1023.02,0.0001726,3]
[402508438,1768690269579,-500.0,0.0001726,3]
[402508440,1768690269589,-729.88,0.0001726,3]
[402508441,1768690269599,-529.68,0.0001726,3]
[402508444,1768690269608,-500.0,0.0001726,3]
[402508446,1768690269618,-500.0,0.0001726,3]
[402508447,1768690269628,-500.0,0.0001726,3]
[402508449,1768690269637,-1424.83,0.0001726,3]
[402508451,1768690269646,-497.71228405,0.0001726,3]
[402508453,1768690269656,-500.0,0.0001726,3]
[402508455,1768690269665,-1648.07,0.0001726,3]
[402508457,1768690269674,-500.0,0.0001726,3]
[402508459,1768690269684,-926.45,0.0001726,3]
[402508461,1768690269693,-500.0,0.0001726,3]
[402508463,1768690269703,-500.0,0.0001726,3]
[402508465,1768690269712,-500.0,0.0001726,3]
[402508467,1768690269723,-575.03830885,0.0001726,3]
[402508469,1768690269733,-1031.93,0.0001726,3]
[402508471,1768690269743,-500.0,0.0001726,3]
[402508473,1768690269752,-500.0,0.0001726,3]
[402508475,1768690269761,-500.0,0.0001726,3]
[402508477,1768690269770,-500.0,0.0001726,3]
[402508479,1768690269779,-956.48,0.0001726,3]
[402508481,1768690269789,-1278.05,0.0001726,3]
[402508483,1768690269799,-1083.73,0.0001726,3]
[402508485,1768690269808,-500.0,0.0001726,3]
[402508487,1768690269818,-996.38,0.0001726,3]
[402508489,1768690269829,-500.0,0.0001726,3]
[402508491,1768690269839,-500.0,0.0001726,3]
[402508493,1768690269850,-500.0,0.0001726,3]
[402508495,1768690269863,-512.1,0.0001726,3]
[402508497,1768690269875,-534.44,0.0001726,3]
[402508498,1768690269893,-1142.0,0.0001726,3]
[402508500,1768690269903,-500.0,0.0001726,3]
[402508502,1768690269912,-500.0,0.0001726,3]
[402508505,1768690269922,-609.19,0.0001726,3]
[402508507,1768690269931,-1565.89,0.0001726,3]
[402508509,1768690269941,-902.19,0.0001726,3]
[402508511,1768690269950,-1625.11,0.0001726,3]
[402508512,1768690269959,-822.5,0.0001726,3]
[402508514,1768690269969,-500.0,0.0001726,3]
[402508516,1768690269979,-509.14,0.0001726,3]
[402508518,1768690269988,-500.0,0.0001726,3]
[402508520,1768690269997,-500.0,0.0001726,3]
[402508522,1768690270007,-507.95,0.0001726,3]
[402508524,1768690270016,-631.39,0.0001726,3]
[402508526,1768690270028,-500.0,0.0001726,3]
[402508528,1768690270037,-500.0,0.0001726,3]
[402508530,1768690270047,-500.0,0.0001726,3]
[402508533,1768690270056,-500.0,0.0001726,3]
[402508535,1768690270065,-1958.41,0.0001726,3]
[402508536,1768690270075,-500.0,0.0001726,3]
[402508538,1768690270084,-1228.38,0.0001726,3]
[402508540,1768690270094,-618.12,0.0001726,3]
[402508543,1768690270103,-500.0,0.0001726,3]
[402508545,1768690270113,-500.0,0.0001726,3]
[402508547,1768690270123,-500.0,0.0001726,3]
[402508548,1768690270132,-500.0,0.0001726,3]
[402508550,1768690270142,-500.0,0.0001726,3]
[402508552,1768690270151,-530.80700199,0.0001726,3]
[402508554,1768690270161,-500.0,0.0001726,3]
[402508556,1768690270170,-500.0,0.0001726,3]
[402508558,1768690270179,-500.0,0.0001726,3]
[402508560,1768690270188,-201.58031394,0.0001726,3]
[402508562,1768690270198,-500.0,0.0001726,3]
[402508565,1768690270208,-532.04,0.0001726,3]
[402508566,1768690270217,-658.45,0.0001726,3]
[402508568,1768690270227,-660.45,0.0001726,3]
[402508570,1768690270236,-500.0,0.0001726,3]
[402508573,1768690270245,-500.0,0.0001726,3]
[402508575,1768690270255,-500.0,0.0001726,3]
[402508576,1768690270264,-588.04,0.0001726,3]
[402508578,1768690270273,-698.4,0.0001726,3]
[402508580,1768690270283,-500.0,0.0001726,3]
[402508582,1768690270292,-500.0,0.0001726,3]
[402508585,1768690270301,-500.0,0.0001726,3]
[402508587,1768690270311,-500.0,0.0001726,3]
[402508589,1768690270323,-500.0,0.0001726,3]
[402508591,1768690270334,-577.4,0.0001726,3]
[402508592,1768690270343,-500.0,0.0001726,3]
[402508594,1768690270352,-1325.56,0.0001726,3]
[402508596,1768690270363,-500.0,0.0001726,3]
[402508598,1768690270372,-500.0,0.0001726,3]
[402508601,1768690270381,-935.84,0.0001726,3]
[402508602,1768690270391,-743.48,0.0001726,3]
[402508604,1768690270401,-500.0,0.0001726,3]
[402508607,1768690270411,-621.29598782,0.0001726,3]
[402508608,1768690270420,-616.9,0.0001726,3]
[402508610,1768690270430,-500.0,0.0001726,3]
[402508612,1768690270439,-869.48,0.0001726,3]
[402508614,1768690270448,-500.0,0.0001726,3]
[402508616,1768690270458,-151.0,0.0001726,2]
[402508618,1768690270467,-151.0,0.0001726,2]
[402508621,1768690270477,-1211.78,0.0001726,3]
[402508623,1768690270486,-500.0,0.0001726,3]
[402508624,1768690270496,-500.0,0.0001726,3]
[402508626,1768690270505,-500.0,0.0001726,3]
[402508628,1768690270514,-632.36,0.0001726,3]
[402508630,1768690270524,-913.02,0.0001726,3]
[402508632,1768690270533,-1274.41,0.0001726,3]
[402508634,1768690270543,-500.0,0.0001726,3]
[402508636,1768690270552,-1122.48,0.0001726,3]
[402508637,1768690270562,-500.0,0.0001726,3]
[402508638,1768690270571,-500.0,0.0001726,3]
[402508639,1768690270580,-500.0,0.0001726,3]
[402508640,1768690270590,-590.51,0.0001726,3]
[402508641,1768690270600,-1318.01,0.0001726,3]
[402508642,1768690270609,-500.0,0.0001726,3]
[402508643,1768690270619,-938.59,0.0001726,3]
[402508644,1768690270628,-500.0,0.0001726,3]
[402508645,1768690270639,-500.0,0.0001726,3]
[402508646,1768690270649,-500.0,0.0001726,3]
[402508647,1768690270659,-500.0,0.0001726,3]
[402508648,1768690270669,-1783.16,0.0001726,3]
[402508649,1768690270678,-500.0,0.0001726,3]
[402508650,1768690270687,-1098.28,0.0001726,3]
[402508651,1768690270697,-500.0,0.0001726,3]
[402508652,1768690270706,-500.0,0.0001726,3]
[402508653,1768690270716,-501.82,0.0001726,3]
[402508654,1768690270725,-734.84,0.0001726,3]
[402508655,1768690270734,-553.74941446,0.0001726,3]
[402508656,1768690270744,-909.25,0.0001726,3]
[402508657,1768690270754,-500.0,0.0001726,3]
[402508658,1768690270764,-551.88,0.0001726,3]
[402508659,1768690270774,-500.0,0.0001726,3]
[402508660,1768690270784,-500.0,0.0001726,3]
[402508661,1768690270794,-500.0,0.0001726,3]
[402508662,1768690270803,-620.38,0.0001726,3]
[402508663,1768690270812,-500.0,0.0001726,3]
[402508664,1768690270823,-634.82538104,0.0001726,3]
[402508665,1768690270833,-500.0,0.0001726,3]
[402508666,1768690270843,-506.62,0.0001726,3]
[402508667,1768690270853,-500.0,0.0001726,3]
[402508668,1768690270862,-500.0,0.0001726,3]
[402508669,1768690270871,-519.22,0.0001726,3]
[402508670,1768690270881,-500.0,0.0001726,3]
[402508671,1768690270891,-836.42,0.0001726,3]
[402508672,1768690270900,-500.0,0.0001726,3]
[402508674,1768690270909,-500.0,0.0001726,3]
[402508676,1768690270918,-500.0,0.0001726,3]
[402508678,1768690270928,-500.0,0.0001726,3]
[402508680,1768690270937,-263.30228,0.0001726,2]
[402508682,1768690270946,-11282.1,0.0001726,3]
[402508684,1768690270960,-263.30228,0.0001726,2]
[402508686,1768690270971,-824.54,0.0001726,3]
[402508688,1768690270981,-500.0,0.0001726,3]
[402508690,1768690270990,-263.30228,0.0001726,2]
[402508692,1768690270999,-500.0,0.0001726,3]
[402508694,1768690271008,-263.302277,0.0001726,2]
[402508696,1768690271017,-1192.22,0.0001726,3]
[402508698,1768690271025,-260.63382945,0.0001726,3]
[402508700,1768690271035,-500.0,0.0001726,3]
[402508702,1768690271044,-500.0,0.0001726,3]
[402508704,1768690271054,-500.0,0.0001726,3]
[402508706,1768690271064,-719.38,0.0001726,3]
[402508708,1768690271074,-500.0,0.0001726,3]
[402508710,1768690271083,-543.17,0.0001726,3]
[402508712,1768690271093,-521.12,0.0001726,3]
[402508714,1768690271103,-696.31,0.0001726,3]
[402508716,1768690271113,-665.4,0.0001726,3]
[402508718,1768690271122,-500.0,0.0001726,3]
[402508720,1768690271133,-1268.1,0.0001726,3]
[402508722,1768690271143,-500.0,0.0001726,3]
[402508724,1768690271152,-2760.78,0.0001726,3]
[402508726,1768690271162,-500.0,0.0001726,3]
[402508728,1768690271171,-500.0,0.0001726,3]
[402508730,1768690271181,-500.0,0.0001726,3]
[402508732,1768690271190,-853.49,0.0001726,3]
[402508734,1768690271199,-990.52,0.0001726,3]
[402508736,1768690271209,-1042.34,0.0001726,3]
[402508738,1768690271219,-545.24616728,0.0001726,3]
[402508740,1768690271228,-923.99,0.0001726,3]
[402508742,1768690271237,-500.0,0.0001726,3]
[402508744,1768690271247,-1012.92,0.0001726,3]
[402508746,1768690271257,-664.25,0.0001726,3]
[402508748,1768690271266,-516.14,0.0001726,3]
[402508750,1768690271275,-500.0,0.0001726,3]
[402508752,1768690271284,-742.53,0.0001726,3]
[402508754,1768690271293,-500.0,0.0001726,3]
[402508756,1768690271302,-500.0,0.0001726,3]
[402508758,1768690271312,-1477.08,0.0001726,3]
[402508760,1768690271325,-500.0,0.0001726,3]
[402508762,1768690271334,-787.6,0.0001726,3]
[402508764,1768690271343,-897.74,0.0001726,3]
[402508773,1768690271419,-1021.5,0.0001726,3]
[402508775,1768690271428,-2290.58,0.0001726,3]
[402508777,1768690271438,-500.0,0.0001726,3]
[402508779,1768690271447,-500.0,0.0001726,3]
[402508781,1768690271456,-580.86,0.0001726,3]
[402508783,1768690271465,-500.0,0.0001726,3]
[402508785,1768690271474,-649.93,0.0001726,3]
[402508787,1768690271483,-500.0,0.0001726,3]
[402508789,1768690271493,-500.0,0.0001726,3]
[402508791,1768690271502,-500.0,0.0001726,3]
[402508793,1768690271511,-515.25,0.0001726,3]
[402508795,1768690271520,-500.0,0.0001726,3]
[402508797,1768690271530,-859.97,0.0001726,3]
[402508799,1768690271539,-500.0,0.0001726,3]
[402508801,1768690271548,-852.82,0.0001726,3]
[402508803,1768690271558,-500.0,0.0001726,3]
[402508805,1768690271566,-500.0,0.0001726,3]
[402508807,1768690271576,-500.0,0.0001726,3]
[402508809,1768690271585,-1221.92,0.0001726,3]
[402508811,1768690271595,-845.98,0.0001726,3]
[402508813,1768690271604,-716.77,0.0001726,3]
[402508814,1768690271613,-500.0,0.0001726,3]
[402508816,1768690271622,-500.0,0.0001726,3]
[402508818,1768690271631,-715.41,0.0001726,3]
[402508820,1768690271640,-500.0,0.0001726,3]
[402508822,1768690271650,-581.82,0.0001726,3]
[402508824,1768690271659,-500.0,0.0001726,3]
[402508826,1768690271669,-712.39,0.0001726,3]
[402508828,1768690271679,-852.94,0.0001726,3]
[402508830,1768690271688,-782.26,0.0001726,3]
[402508832,1768690271697,-500.0,0.0001726,3]
[402508834,1768690271707,-500.0,0.0001726,3]
[402508836,1768690271716,-500.0,0.0001726,3]
[402508838,1768690271725,-500.0,0.0001726,3]
[402508840,1768690271735,-500.0,0.0001726,3]
[402508842,1768690271744,-1066.77,0.0001726,3]
[402508843,1768690271754,-536.65897098,0.0001726,3]
[402508846,1768690271765,-982.72,0.0001726,3]
[402508847,1768690271774,-500.0,0.0001726,3]
[402508849,1768690271784,-314.91278331,0.0001726,3]
[402508852,1768690271794,-500.0,0.0001726,3]
[402508853,1768690271803,-500.0,0.0001726,3]
[402508855,1768690271812,-500.0,0.0001726,3]
[402508857,1768690271822,-888.49,0.0001726,3]
[402508859,1768690271831,-951.59,0.0001726,3]
[402508861,1768690271841,-1067.93,0.0001726,3]
[402508863,1768690271851,-500.0,0.0001726,3]
[402508865,1768690271860,-500.0,0.0001726,3]
[402508867,1768690271869,-917.71,0.0001726,3]
[402508869,1768690271878,-500.0,0.0001726,3]
[402508871,1768690271887,-500.0,0.0001726,3]
[402508873,1768690271897,-1013.76,0.0001726,3]
[402508875,1768690271906,-500.0,0.0001726,3]
[402508877,1768690271915,-500.0,0.0001726,3]
[402508879,1768690271926,-500.0,0.0001726,3]
[402508881,1768690271935,-642.52947467,0.0001726,3]
[402508883,1768690271944,-1126.76,0.0001726,3]
[402508885,1768690271954,-622.79807834,0.0001726,3]
[402508887,1768690271963,-983.13,0.0001726,3]
[402508889,1768690271974,-500.0,0.0001726,3]
[402508891,1768690271983,-2222.48,0.0001726,3]
[402508893,1768690271992,-967.62,0.0001726,3]
[402508895,1768690272001,-1769.73,0.0001726,3]
[402508897,1768690272010,-918.79,0.0001726,3]
[402508899,1768690272019,-953.07,0.0001726,3]
[402508901,1768690272029,-971.31,0.0001726,3]
[402508903,1768690272038,-500.0,0.0001726,3]
[402508905,1768690272048,-500.0,0.0001726,3]
[402508907,1768690272057,-734.94,0.0001726,3]
[402508909,1768690272066,-596.26,0.0001726,3]
[402508911,1768690272075,-500.0,0.0001726,3]
[402508913,1768690272085,-1276.22,0.0001726,3]
[402508915,1768690272094,-500.0,0.0001726,3]
[402508917,1768690272103,-500.0,0.0001726,3]
[402508919,1768690272112,-1013.32,0.0001726,3]
[402508921,1768690272122,-500.0,0.0001726,3]
[402508923,1768690272131,-1040.56,0.0001726,3]
[402508925,1768690272140,-500.0,0.0001726,2]
[402508927,1768690272149,-500.0,0.0001726,3]
[402508929,1768690272159,-659.0,0.0001726,3]
[402508931,1768690272168,-500.0,0.0001726,3]
[402508933,1768690272177,-500.0,0.0001726,3]
[402508935,1768690272187,-500.0,0.0001726,3]
[402508937,1768690272196,-561.99,0.0001726,3]
[402508939,1768690272205,-500.0,0.0001726,3]
[402508941,1768690272216,-500.0,0.0001726,3]
[402508943,1768690272226,-517.45,0.0001726,3]
[402508945,1768690272236,-500.0,0.0001726,2]
[402508947,1768690272246,-500.0,0.0001726,3]
[402508949,1768690272255,-500.0,0.0001726,3]
[402508951,1768690272265,-922.41,0.0001726,3]
[402508953,1768690272275,-500.0,0.0001726,3]
[402508955,1768690272285,-726.73,0.0001726,3]
[402508957,1768690272294,-500.0,0.0001726,3]
[402508959,1768690272303,-6092.67,0.0001726,3]
[402508961,1768690272313,-500.0,0.0001726,3]
[402508963,1768690272326,-938.65,0.0001726,3]
[402508965,1768690272336,-500.0,0.0001726,3]
[402508967,1768690272346,-1576.41,0.0001726,3]
[402508969,1768690272355,-1252.44,0.0001726,3]
[402508971,1768690272364,-500.0,0.0001726,3]
[402508973,1768690272374,-500.0,0.0001726,3]
[402508975,1768690272384,-500.0,0.0001726,3]
[402508977,1768690272398,-500.0,0.0001726,3]
[402508979,1768690272412,-500.0,0.0001726,3]
[402508981,1768690272421,-500.0,0.0001726,3]
[402508983,1768690272431,-151.0,0.0001726,2]
[402508985,1768690272440,-905.84,0.0001726,3]
[402508987,1768690272449,-500.0,0.0001726,3]
[402508989,1768690272459,-151.0,0.0001726,2]
[402508991,1768690272468,-500.0,0.0001726,2]
[402508992,1768690272477,-371.0,0.00017269,2]
[402508994,1768690272487,-421.00554913,0.00017284,13]
[402508996,1768690272497,-629.0,0.00017385,2]
[402508999,1768690272507,-2147.0,0.00017385,2]
[402509000,1768690272518,-1367.0,0.00017385,2]
[402509002,1768690272527,-363.0,0.00017397,3]
[402509004,1768690272536,-729.0,0.00017411,2]
[402509006,1768690272546,-336.0,0.00017447,2]
[402509009,1768690272555,-634.87584173,0.00017534,3]
[402509010,1768690272566,-181.451457,0.00017534,7]
[402509012,1768690272575,-500.0,0.00017534,3]
[402509014,1768690272584,-500.0,0.00017534,3]
[402509016,1768690272593,-754.74,0.00017534,3]
[402509018,1768690272603,-560.03,0.00017534,3]
[402509020,1768690272612,-500.0,0.00017534,3]
[402509022,1768690272621,-1218.98,0.00017534,3]
[402509024,1768690272631,-500.0,0.00017534,3]
[402509026,1768690272640,-500.0,0.00017534,3]
[402509028,1768690272649,-500.0,0.00017534,3]
[402509030,1768690272659,-500.0,0.00017534,3]
[402509032,1768690272669,-833.13,0.00017534,3]
[402509034,1768690272678,-500.0,0.00017534,3]
[402509036,1768690272690,-500.0,0.00017534,3]
[402509039,1768690272700,-532.33,0.00017534,3]
[402509041,1768690272710,-346.63907245,0.00017534,3]
[402509043,1768690272719,-500.0,0.00017534,3]
[402509045,1768690272729,-1124.54,0.00017534,3]
[402509046,1768690272739,-565.89,0.00017534,3]
[402509048,1768690272748,-606.31,0.00017534,3]
[402509050,1768690272758,-500.0,0.00017534,3]
[402509053,1768690272767,-500.0,0.00017534,3]
[402509055,1768690272778,-500.0,0.00017534,3]
[402509057,1768690272787,-603.28,0.00017534,3]
[402509059,1768690272796,-500.0,0.00017534,3]
[402509061,1768690272806,-569.91,0.00017534,3]
[402509063,1768690272816,-500.0,0.00017534,3]
[402509065,1768690272825,-500.0,0.00017534,3]
[402509067,1768690272834,-500.0,0.00017534,3]
[402509069,1768690272843,-693.96,0.00017534,3]
[402509071,1768690272852,-500.0,0.00017534,3]
[402509072,1768690272862,-500.0,0.00017534,3]
[402509075,1768690272871,-500.0,0.00017534,3]
[402509076,1768690272882,-638.05,0.00017534,3]
[402509079,1768690272892,-500.0,0.00017534,3]
[402509080,1768690272902,-524.22048595,0.00017534,3]
[402509082,1768690272911,-500.0,0.00017534,3]
[402509084,1768690272921,-500.0,0.00017534,3]
[402509086,1768690272931,-500.0,0.00017534,3]
[402509088,1768690272940,-500.0,0.00017534,3]
[402509090,1768690272949,-1254.24,0.00017534,3]
[402509092,1768690272959,-500.0,0.00017534,3]
[402509094,1768690272970,-500.0,0.00017534,3]
[402509096,1768690272979,-1016.48,0.00017534,3]
[402509098,1768690272988,-500.0,0.00017534,3]
[402509100,1768690272997,-500.0,0.00017534,3]
[402509102,1768690273007,-744.84,0.00017534,3]
[402509104,1768690273017,-500.0,0.00017534,3]
[402509106,1768690273027,-666.3,0.00017534,3]
[402509108,1768690273037,-500.0,0.00017534,3]
[402509110,1768690273046,-500.0,0.00017534,3]
[402509112,1768690273056,-347.44370923,0.00017534,3]
[402509114,1768690273065,-705.44,0.00017534,3]
[402509116,1768690273075,-500.0,0.00017534,3]
[402509118,1768690273084,-598.9,0.00017534,3]
[402509120,1768690273093,-500.0,0.00017534,3]
[402509122,1768690273103,-500.0,0.00017534,3]
[402509124,1768690273113,-500.0,0.00017534,3]
[402509126,1768690273122,-500.0,0.00017534,3]
[402509128,1768690273132,-1079.67,0.00017534,3]
[402509130,1768690273141,-893.97,0.00017534,3]
[402509132,1768690273151,-507.59,0.00017534,3]
[402509134,1768690273160,-655.07,0.00017534,3]
[402509136,1768690273169,-500.0,0.00017534,3]
[402509138,1768690273178,-565.41,0.00017534,3]
[402509140,1768690273186,-734.51,0.00017534,3]
[402509142,1768690273196,-500.0,0.00017534,3]
[402509144,1768690273205,-953.25120035,0.00017534,2]
[402509146,1768690273214,-500.0,0.00017534,3]
[402509148,1768690273223,-500.0,0.00017534,3]
[402509150,1768690273232,-500.0,0.00017534,3]
[402509152,1768690273242,-507.91,0.00017534,3]
[402509153,1768690273251,-500.0,0.00017534,3]
[402509154,1768690273259,-500.0,0.00017534,3]
[402509155,1768690273268,-968.74,0.00017534,3]
[402509156,1768690273278,-500.0,0.00017534,3]
[402509157,1768690273287,-551.81,0.00017534,3]
[402509158,1768690273296,-500.0,0.00017534,3]
[402509159,1768690273306,-500.0,0.00017534,3]
[402509160,1768690273315,-500.0,0.00017534,3]
[402509161,1768690273328,-594.23,0.00017534,3]
[402509162,1768690273337,-560.83,0.00017534,3]
[402509163,1768690273346,-500.0,0.00017534,3]
[402509165,1768690273355,-500.0,0.00017534,3]
[402509167,1768690273365,-620.36,0.00017534,3]